Cogmind - Beta 12 @@@ ROGUE MODE // 2023.03.23 @ 09:10:20 Player: ILikeVoltron Result: Destroyed by G-47 Trooper with Particle Gun Performance ------------- Evolutions (0) 0 Regions Visited (2) 400 Robots Destroyed (22) 110 Value Destroyed (507) 507 Prototype IDs (0) 0 Alien Tech Used (0) 0 Bonus (0) 0 TOTAL SCORE: 1017 Bonus ------- None Cogmind --------- Core Integrity 0/250 Matter 231/450 Energy 125/125 System Corruption 0% Temperature Cool (9) Movement Walking (190) Ox1 Location -10/Mines Parts ------- > --- POWER (1) -------- Light Ion Engine > --- PROPULSION (2) --- Aluminum Leg Aluminum Leg > --- UTILITY (2) ------ Medium Storage Unit Large Matter Pod > --- WEAPON (2) ------- Light Cannon Flail > --- INVENTORY (10) --- Aluminum Leg Aluminum Leg Large Storage Unit Medium Matter Pod (44) Structural Scanner Sensor Array Terrain Scanner ECM Suite Shield Generator Grenade Launcher Peak State ------------ > --- POWER ------------ Ion Engine > --- PROPULSION ------- Aluminum Leg Aluminum Leg > --- UTILITY ---------- Medium Storage Unit Terrain Scanner > --- WEAPON ----------- Shotgun Flail > --- INVENTORY -------- Aluminum Leg Aluminum Leg Large Storage Unit Medium Matter Pod Large Matter Pod Structural Scanner Sensor Array ECM Suite Shield Generator Grenade Launcher [Rating: 10] Favorites ----------- Power Light Ion Engine Engine Light Ion Engine Propulsion Aluminum Leg Leg Aluminum Leg Utility Medium Storage Unit Device Terrain Scanner Storage Medium Storage Unit Weapon Flail Ballistic Gun Light Assault Rifle Ballistic Cannon Light Cannon Impact Weapon Flail Build | -11 -10 -10 ------- Run | Jun Mat Min Slots Evolved . | . . . Power . | . . . Propulsion . | . . . Utility . | . . . Weapon . | . . . Parts Attached 36 | . 30 6 Power 6 | . 6 . Engine 6 | . 6 . Core . | . . . Reactor . | . . . Propulsion 9 | . 7 2 Treads . | . . . Leg 9 | . 7 2 Wheel . | . . . Hover . | . . . Flight . | . . . Utility 12 | . 9 3 Device 10 | . 8 2 Storage 2 | . 1 1 Processor . | . . . Hackware . | . . . Protection . | . . . Artifact . | . . . Weapon 9 | . 8 1 Energy Gun . | . . . Energy Cannon . | . . . Ballistic Gun 6 | . 6 . Ballistic Cannon 1 | . . 1 Launcher . | . . . Special Weapon . | . . . Impact Weapon 2 | . 2 . Slashing Weapon . | . . . Piercing Weapon . | . . . Special Melee Weapon . | . . . Unidentified Prototypes . | . . . Parts Lost 4 | . 4 . Power 2 | . 2 . Propulsion 1 | . 1 . Utility 1 | . 1 . Weapon . | . . . Highest Loss Streak 2 | . 2 . To Critical Strikes . | . . . Average Slot Usage (%) 97 | . 96 100 Engine 13 | . 13 14 Leg 27 | . 26 28 Device 13 | . 13 13 Storage 14 | . 14 14 Ballistic Gun 15 | . 22 . Ballistic Cannon 3 | . . 13 Impact Weapon 7 | . 5 14 Naked Turns . | . . . Heaviest Build 21 | 12 21 21 Greatest Support 20 | 20 20 20 Greatest Overweight (x) 5 | . 5 1 Average Overweight (x) . | . . . Largest Inventory Capacity 10 | . 10 10 Average Capacity 9 | . 9 10 Most Carried 10 | . 10 10 Average Carried 9 | . 9 10 Final Capacity 10 | 8 10 10 Final Carried 10 | 6 10 10 Class Distribution -------------------- 62% | Mutant 37% | Scavenger-Mutant Dominant Class ---------------- Mutant | -10/Materials Mutant | -10/Mines Resources | -11 -10 -10 ----------- Run | Jun Mat Min Matter Collected 927 | 200 600 127 Remotely . | . . . Salvage Created 695 | . 600 95 Parts 38 | . 35 3 Haulers Intercepted 2 | . 2 . Recyclers Shooed . | . . . Parts Field Recycled . | . . . Retrieved Matter . | . . . Parts Self-Destructed . | . . . Prevented . | . . . Kills | -11 -10 -10 ------- Run | Jun Mat Min Combat Hostiles Destroyed 14 | . 12 2 Guns 12 | . 12 . Cannons 2 | . . 2 Classes Destroyed 8 | . 7 1 Worker 1 | . 1 . Builder 2 | . 2 . Tunneler 1 | . . 1 Hauler 2 | . 2 . Operator 1 | . 1 . Watcher 1 | . 1 . Swarmer 3 | . 3 . Grunt 11 | . 9 2 Best Kill Streak 4 | . 4 2 Combat Bots Only 4 | . 4 2 Max Kills in Single Turn 1 | . 1 1 Gunslinging . | . . . Exploded . | . . . Melee . | . . . Uniques/NPCs Destroyed . | . . . Combat | -11 -10 -10 -------- Run | Jun Mat Min Damage Taken 1063 | . 808 255 Core 257 | . 182 75 Absorbed by Shields . | . . . Core Remaining (%) 100 | 100 . . Volleys Fired 83 | . 62 21 Largest 2 | . 2 1 Hottest 40 | . 40 35 Shots Fired 141 | . 120 21 Gun 120 | . 120 . Cannon 21 | . . 21 Launcher . | . . . Special . | . . . Kinetic 141 | . 120 21 Thermal . | . . . Explosive . | . . . Electromagnetic . | . . . Robot Hit Streak 19 | . 7 19 Robot Miss Streak 7 | . 7 2 Penetration Max . | . . . Secondary Targets 3 | . 3 . Max Gunslinging Chain 1 | . 1 . Shots Hit Robots 90 | . 71 19 Core Hits 34 | . 30 4 Critical Kills 1 | . 1 . Critical Parts Destroyed 3 | . 2 1 Critical Strikes 4 | . 3 1 Destroy 1 | . 1 . Smash 3 | . 2 1 Melee Attacks 14 | . 12 2 Impact 14 | . 12 2 Slashing . | . . . Piercing . | . . . Sneak Attacks 4 | . 3 1 Combat Hostiles . | . . . Follow-up Attacks . | . . . Damage Inflicted 1257 | . 854 403 Guns 710 | . 710 . Cannons 331 | . . 331 Explosions . | . . . Melee 216 | . 144 72 Ramming . | . . . Kinetic 1041 | . 710 331 Thermal . | . . . Explosive . | . . . Electromagnetic . | . . . Impact 216 | . 144 72 Slashing . | . . . Piercing . | . . . Highest Corruption . | . . . Average Corruption . | . . . Corruption Purged . | . . . Corruption Blocked . | . . . Overload Shots . | . . . Overflow Damage 204 | . 124 80 Projectiles 8 | . . 8 Explosions . | . . . Melee 196 | . 124 72 Knockbacks 11 | . . 11 Impact . | . . . Kinetic 9 | . . 9 Secondary 2 | . . 2 Self-Inflicted Damage . | . . . Shots . | . . . Rammed . | . . . Targets Rammed . | . . . Kicked . | . . . Crushed . | . . . Highest Temperature 47 | . 47 18 Average Temperature 12 | . 15 7 Received Heat Transfer 471 | . 321 150 Siege Activations . | . . . Robots Corrupted . | . . . Combat Hostiles . | . . . Parts Fried 3 | . 3 . Impact Corruptions 7 | . 4 3 Robots Melted . | . . . Combat Hostiles . | . . . Parts Melted . | . . . Heat Transferred . | . . . Parts Sabotaged . | . . . Parts Stolen . | . . . Parts Stripped . | . . . Power Chain Reactions . | . . . Missiles Intercepted . | . . . Alert | -11 -10 -10 ------- Run | Jun Mat Min Peak Influence 230 | . 230 120 Initial 49 | . . 49 Average 107 | . 120 76 Maximum Alert Level 1 | . 1 . Low Security (%) 87 | . 82 100 Level 1 12 | . 17 . Level 2 . | . . . Level 3 . | . . . Level 4 . | . . . Level 5 . | . . . High Security . | . . . Max Security . | . . . Squads Dispatched 3 | . 3 . Investigation . | . . . Extermination . | . . . Reinforcement 3 | . 3 . Assault . | . . . Garrison . | . . . Intercept . | . . . Searches Triggered . | . . . Construction Impeded . | . . . Haulers Reinforced . | . . . Active Scanning Responses . | . . . Cargo Convoy Interrupts . | . . . Stealth | -11 -10 -10 --------- Run | Jun Mat Min Distress Signals 3 | . 3 . Communications Jammed . | . . . Distress Signals . | . . . Times Spotted 34 | . 30 4 Peak Tracking Total 6 | . 6 2 Tactical Retreats 5 | . 4 1 Traps | -11 -10 -10 ------- Run | Jun Mat Min Traps Triggered 4 | . 4 . Indirectly . | . . . Trap Hack Attempts . | . . . Triggered . | . . . Disarmed . | . . . Reprogrammed . | . . . Reused . | . . . Traps Extracted . | . . . Installed . | . . . Triggered . | . . . Machines | -11 -10 -10 ---------- Run | Jun Mat Min Machines Disabled 1 | . . 1 Max in Single Turn 1 | . . 1 Machines Repaired . | . . . Machines Sabotaged . | . . . Overloaded Fab Kills . | . . . Hacking | -11 -10 -10 --------- Run | Jun Mat Min Machines Accessed 5 | . 5 . Terminals 4 | . 4 . Fabricators . | . . . Repair Stations . | . . . Recycling Units 1 | . 1 . Scanalyzers . | . . . Garrison Access . | . . . Total Hacks 9 | . 9 . Successful 4 | . 4 . Failed 5 | . 5 . Catastrophic . | . . . Database Lockouts . | . . . Manual 1 | . 1 . Terminals 8 | . 8 . Fabricators . | . . . Repair Stations . | . . . Recycling Units 1 | . 1 . Scanalyzers . | . . . Garrison Access . | . . . Terminal Hacks 3 | . 3 . Branch Access Points 1 | . 1 . Emergency Access Points 1 | . 1 . Terminal Index 1 | . 1 . Fabricator Hacks . | . . . Repair Station Hacks . | . . . Recycling Unit Hacks 1 | . 1 . Report Inventory 1 | . 1 . Scanalyzer . | . . . Garrison Access Hacks . | . . . Unauthorized Hacks . | . . . Terminals . | . . . Fabricators . | . . . Repair Stations . | . . . Recycling Units . | . . . Scanalyzers . | . . . Garrison Access . | . . . Data Cores Recovered . | . . . Used . | . . . Hacking Detections 2 | . 2 . Full Trace Events . | . . . Feedback Events . | . . . Feedback Blocked . | . . . Robot Schematics Acquired . | . . . Robots Built . | . . . Authchips . | . . . Time . | . . . Total Robot Build Rating . | . . . Part Schematics Acquired . | . . . Parts Built . | . . . Authchips . | . . . Time . | . . . Total Part Build Rating . | . . . Parts Repaired . | . . . Time . | . . . Parts Recycled . | . . . Recycled Matter . | . . . Retrieved Matter . | . . . Retrieved Components . | . . . Parts Scanalyzed . | . . . Part Schematics Acquired . | . . . Parts Damaged . | . . . Bothacking | -11 -10 -10 ------------ Run | Jun Mat Min Used RIF Installer . | . . . Robots Hacked . | . . . Non-combat . | . . . Combat . | . . . Robot Hacks Applied . | . . . Relay Couplers Released . | . . . Fabnet Peak Effective % . | . . . Robots Rewired . | . . . Allies Hacked . | . . . Hacks Repelled . | . . . Allies | -11 -10 -10 -------- Run | Jun Mat Min Total Allies . | . . . Largest Group . | . . . Highest-Rated Group . | . . . Highest-Rated Ally . | . . . Total Orders . | . . . Ally Attacks . | . . . Total Damage . | . . . Kills . | . . . Allies Corrupted . | . . . Allies Melted . | . . . Intel | -11 -10 -10 ------- Run | Jun Mat Min Robot Analysis Total . | . . . Derelict Logs Recovered 2 | . . 2 Drone Launches . | . . . Drone Recoveries . | . . . Exploration | -11 -10 -10 ------------- Run | Jun Mat Min Turns Passed 1412 | . 999 413 Spaces Moved 820 | 1 544 275 Core 6 | . 6 . Treads . | . . . Legs 814 | 1 538 275 Wheels . | . . . Hover . | . . . Flight . | . . . Fastest Speed 120 | 120 120 120 Average Speed 130 | 120 134 121 Slowest Speed 300 | 120 300 190 Overloaded Moves . | . . . Propulsion Burnouts . | . . . Robots Hopped . | . . . Cave-ins Triggered . | . . . Exploration Rate (%) 48 | 2 77 66 Regions Visited 2 Branch Regions 1 Pre-discovered Areas 1 | . . 1 Known Exits Taken 1 | . 1 . Unknown Exits Taken 1 | 1 . . Scrap Searched 1 | . . 1 Spaces Dug 8 | . 7 1 Terrain Destroyed 8 | . 7 1 Melee 8 | . 7 1 Projectile . | . . . AOE . | . . . Terrain Rammed . | . . . Walls Destroyed . | . . . Machines Disabled . | . . . Actions | -11 -10 -10 --------- Run | Jun Mat Min Total 1019 | . 689 330 Wait 28 | . 5 23 Move 818 | . 543 275 Hop . | . . . Pick Up 15 | . 15 . Fast Attach 17 | . 16 1 Attach 1 | . 1 . Detach . | . . . Swap 18 | . 13 5 Drop 25 | . 22 3 Fire 83 | . 62 21 Melee 14 | . 12 2 Ram . | . . . Kick . | . . . Crush . | . . . Escape Stasis . | . . . Rewire . | . . . Trap . | . . . Miscellaneous . | . . . Route ------- -11/Junkyard -10/Materials (discovered 4 exits: [*Mat x2] / *Min x2) -10/Mines History --------- Turn | Location | Event 1 | -11/Junkyard | Discovered new exit (range 0) 1 | -11/Junkyard | Entered Materials 313 | -10/Materials | Build established: Mutant 358 | -10/Materials | Discovered new exit (range 13) 486 | -10/Materials | Core integrity fell below 50% 531 | -10/Materials | Discovered new exit (range 16) 556 | -10/Materials | Identified exit to Mines 892 | -10/Materials | Build established: Scavenger-Mutant 926 | -10/Materials | Discovered new exit (range 15) 1000 | -10/Materials | Entered Mines 1012 | -10/Mines | Learned Materials emergency access door positions 1030 | -10/Mines | Learned location of Storage (-7) 1200 | -10/Mines | Build established: Mutant 1393 | -10/Mines | Core integrity fell below 20% 1413 | -10/Mines | Destroyed by G-47 Trooper with Particle Gun Last Messages --------------- 01237_ G-47 Trooper knocked back. 01239_ G-34 Mercenary knocked back. 01241_ G-47 Trooper knocked back. 01243_ G-34 Mercenary destroyed. 01245_ G-47 Trooper knocked back. 01251_ Dropped Aluminum Leg. 01253_ G-47 Trooper destroyed. 01255_ Acquired 38 matter. 01257_ Dropped Aluminum Leg. 01260_ Acquired 37 matter. 01261_ Acquired 4 matter. 01264_ R-06 Scavenger collects Aluminum Leg. 01268_ Acquired 2 matter. 01271_ R-06 Scavenger collects Aluminum Leg. 01273_ Acquired 1 matter. 01279_ K-01 Serf collects debris. 01380_ G-47 Trooper knocked back. 01398_ Acquired 2 matter. 01400_ G-47 Trooper knocked back. 01402_ Destroyed Lgt. Nuclear Core. Map ----- +----------------------------------------------------+ | # ###??????????### ############ | | # ##???############ ## #### # | | # ###??############ ## ## ## | | ####### ## ### | | ###### ######### ###? | | ## ### ######### ### ###?? | | ### ## ##???#### ##### ###?? | | ### ###??## #### ####? | | ### ##??## """ ##### #### | | #### ### ##??## """ ###### ### | | ## ############ ###??## """ ##?####### ## | | ################ ####??## ##??####### # | | #####????????## ###???#### #####??????##### | | ## ##???????????## ##### #####??########## | | ## ##???????????####### ##### #############?### | | ## ##???????????####### ######## ###??## # | | ## ##???????????????######## ## ##??##### | | #????????????########### ##??##### | | #???????????## ???### ##??????? | | #??????#????## "" %#### ##??????? | | """ ###?????????## "" #### ##??????? | | """ ##?????????## """% g ### ###??????? | | """ #????????#?## # ## #### #####??????? | | ##??????????## ?? # ### ###########???????? | | ## ###???????????###???## ########?#####?????????? | | ## ##??????????????????#t@#######????????????????? | | ?# #?????????????????# #?????????????????????? | | ## #?????????????????# #?????????????????????? | | ## #?????????????????## ?????????????????????? | | ## #????#??????#?????? ????????????????????? | | ## #????????????????? ???????????????????? | | ## #????????????????#### ???????????????????? | | ## #???? ?? ??????????# ??????????????????? | | ## #### """ ? ???????# ##### ?????????????????? | | """ ?????????# ????? #????????????????? | | ####### """ ?????????# ??????#????????????????? | | #????????? ??????????# ???????????????????????? | | ##?????????????????????# ???????????????????????? | | #####?????????????????? ???????????????????????? | | #?????????????????? ???????????????????????? | | #?????????????????? ???????????????????????? | | #???????????????????????????????????????????? | | ##??#? ??????????????????????????????????????? | | ##????????????????????????????????????????????? | | #?????????????????????????????????????????????? | | #?????????????????????????????????????????????? | | #????????????????????????????????????????????? | | # ???????????????????????????????????????????? | | # ??????????????????????????????????????????? | | ?????????????????????????????????????????? | +----------------------------------------------------+ Best States ------------- Heat Dissipation 25 Energy Generation 10 Energy Capacity 250 Matter Stores 300 Matter Capacity 450 Sight Range 16 Robot Scan Range 14 Terrain Scan Range 14 Terrain Scan Density 10 ECM Strength 1 Evasion (%) 55 Item Schematics ----------------- None Robot Schematics ------------------ None Fabricated ------------ Nothing Alien Tech Used ----------------- None Achievements -------------- None Challenges ------------ None Game ------ Seed PoweredHardcellProcessor Manual? 0 Play Time 00:15:44 Cumulative 85.3 hours Start 2023.03.23 @ 08:57:15 End 2023.03.23 @ 09:10:20 Sessions 1 Manual Loads 0 Difficulty Rogue Special Mode None Game No. 126 Rogue 122 Adventurer 0 Explorer 4 Win Type - Total 0 Types 0/0/0/0/0/0/0/0/0 Lore% 24 Gallery% 39 Achievement% 32 Wizard Run 0 Options --------- ASCII 0 Keyboard 1 Movement Arrows Keybinds 0 Fullscreen 2 Font 24/Smallcaps Map View 113x50 Tactical HUD 1 Map Filters NONE Filters NONE Steam 1 RUN: 72508aeb-95f2-4868-a537-9c48711e9539